fUSD/lending_fUSD_20241013
["ID","MTS","AMOUNT","RATE_DAILY","PERIOD"]
[340191758,1728807046099,-156.87,0.00010959,2]
[340191759,1728807046109,-399.266225,0.00010971,2]
[340191760,1728807046119,-503.24074229,0.00010973,2]
[340191761,1728807046128,-168.25091254,0.00010973,2]
[340191762,1728807046137,-255.0,0.00010981,2]
[340191763,1728807046146,-1000.0,0.00010992,2]
[340191764,1728807046155,-3282.5955153,0.00010994,2]
[340191765,1728807046166,-794.7086949,0.00010994,2]
[340191766,1728807046175,-7176.2886549,0.00010997,2]
[340191767,1728807046184,-207.9998251,0.00010999,2]
[340191768,1728807046195,-500.0,0.00010999,2]
[340191769,1728807046205,-500.0,0.00010999,2]
[340191770,1728807046215,-416.02213325,0.00010999,2]
[340191771,1728807046224,-21985.85161265,0.00011,2]
[340191773,1728807142039,213.48,8.698e-05,2]
[340191838,1728807681681,214.45,8.317e-05,2]
[340191839,1728807806892,23890.0,0.00010182,2]
[340191840,1728807912656,250.0,0.00010235,2]
[340191843,1728808014347,1905.33,0.00010233,2]
[340191872,1728808215964,226.86,8.378e-05,2]
[340191878,1728808231875,-160.0,0.00010237,2]
[340191879,1728808231884,-483.54480028,0.00010238,2]
[340191880,1728808231892,-283.21,0.00010263,2]
[340191881,1728808231901,-90.80985718,0.00010267,2]
[340191882,1728808231912,-159.19014282,0.00010267,2]
[340191883,1728808231921,-840.0,0.00010279,2]
[340191884,1728808231930,-800.0,0.00010619,2]
[340191885,1728808231939,-226.86,0.00010641,2]
[340191886,1728808231948,-355.1336,0.000109,2]
[340191887,1728808231957,-166.39,0.00010959,2]
[340191888,1728808231967,-154.39,0.00010959,2]
[340191889,1728808231976,-300.0,0.00010992,2]
[340191890,1728808231985,-1510.40664788,0.00010994,2]
[340191891,1728808231999,-809.1,0.00010994,2]
[340191892,1728808232010,-842.0,0.00010994,2]
[340191893,1728808232020,-881.075,0.00010994,2]
[340191894,1728808232031,-970.896,0.00010994,2]
[340191895,1728808232043,-956.338425,0.00010994,2]
[340191896,1728808232053,-2904.2569678,0.00010994,2]
[340191897,1728808232064,-1063.99151241,0.00010994,2]
[340191905,1728808238143,-1001.17355993,0.00010994,2]
[340192040,1728808239884,-996.56768948,0.00010994,2]
[340192052,1728808239997,-4516.8250733,0.00010994,2]
[340192055,1728808240007,-173.66652308,0.00010999,2]
[340192057,1728808240016,-104.30840366,0.00010999,2]
[340192081,1728808242851,-45.69159634,0.00010999,2]
[340192083,1728808242860,-22694.59137057,0.00011,2]
[340192089,1728808242906,-3156.5487811,0.00011,2]
[340192090,1728808245856,-6074.729098,0.00011,2]
[340192091,1728808246018,-34240.73082548,0.00011,2]
[340192092,1728808327647,500.0,9.071e-05,2]
[340192093,1728808327722,500.0,0.00010167,2]
[340192094,1728808328188,500.0,9.071e-05,2]
[340192095,1728808337424,500.0,0.00010167,2]
[340192096,1728808723676,283.21,0.00010161,2]
[340192097,1728808839469,226.21,8.219e-05,2]
[340192098,1728808873772,5199.28,0.00010066,2]
[340192099,1728808989467,250.0,0.00010083,2]
[340192100,1728809042663,2697.59,0.00010106,2]
[340192101,1728809054544,160.0,0.00010083,2]
[340192102,1728809084617,250.0,0.00010061,2]
[340192110,1728809221570,257.67,0.00010023,2]
[340192111,1728809233205,644.84,0.00010023,2]
[340192148,1728809431992,-872.0,0.00010368,2]
[340192150,1728809432002,-226.21,0.0001048,2]
[340192152,1728809432011,-800.0,0.00010619,2]
[340192154,1728809432020,-161.60071545,0.00010797,2]
[340192156,1728809432029,-3309.5492,0.000108,2]
[340192158,1728809432038,-500.0,0.00010873,2]
[340192160,1728809432047,-1471.44465921,0.00010887,2]
[340192163,1728809432057,-150.0,0.00010889,2]
[340192164,1728809432066,-300.0,0.00010889,2]
[340192166,1728809432076,-27382.8347633,0.0001089,2]
[340192169,1728809432088,-1438.04137625,0.0001089,2]
[340192175,1728809432215,-6704.26046272,0.0001089,2]
[340192176,1728809432227,-710.26876103,0.0001089,2]
[340192177,1728809432268,-509.43606644,0.0001089,2]
[340192259,1728809440250,-495.03,0.0001089,2]
[340192260,1728809440413,-52689.22641994,0.0001089,2]
[340192262,1728809440423,-11918.78698238,0.0001089,2]
[340192264,1728809440433,-825.1967,0.0001089,2]
[340192266,1728809440442,-150.99,0.0001089,2]
[340192268,1728809440451,-820.85,0.00010895,2]
[340192269,1728809440461,-16102.07104761,0.00010895,2]
[340192271,1728809440470,-150.99,0.00010896,2]
[340192273,1728809440481,-7176.14,0.00010896,2]
[340192275,1728809440492,-150.0,0.00010896,2]
[340192277,1728809440502,-1441276.92813025,0.00010897,2]
[340192279,1728809440511,-1237.07,0.00010897,2]
[340192281,1728809440520,-163.98880851,0.00010899,2]
[340192283,1728809440531,-163.98880847,0.00010899,2]
[340192285,1728809440540,-163.98880847,0.00010899,2]
[340192287,1728809440549,-163.98880847,0.00010899,2]
[340192289,1728809440560,-527.9892,0.000109,2]
[340192291,1728809440569,-499.99,0.000109,2]
[340192293,1728809440578,-5002.8257,0.000109,2]
[340192295,1728809440587,-3290.9539,0.000109,2]
[340192297,1728809440596,-708.04909708,0.000109,2]
[340192299,1728809440605,-13074.36,0.000109,2]
[340192301,1728809440614,-168.17,0.000109,2]
[340192303,1728809440624,-1103.57,0.000109,2]
[340192305,1728809440633,-6172.6422,0.000109,2]
[340192307,1728809440642,-211.76374621,0.000109,2]
[340192309,1728809440651,-163.98880847,0.000109,2]
[340192311,1728809440660,-186.37507345,0.000109,2]
[340192313,1728809440669,-1054.6500108,0.000109,2]
[340192315,1728809440679,-500.0,0.00010945,2]
[340192317,1728809440688,-500.0,0.00010945,2]
[340192319,1728809440697,-500.0,0.00010945,2]
[340192321,1728809440706,-500.0,0.00010945,2]
[340192323,1728809440715,-500.0,0.00010945,2]
[340192325,1728809440724,-402.6314,0.00010945,2]
[340192327,1728809440733,-360.7065,0.00010945,2]
[340192329,1728809440743,-500.0,0.00010958,2]
[340192331,1728809440752,-614.83234923,0.00010958,2]
[340192333,1728809440761,-500.0,0.00010958,2]
[340192335,1728809440772,-500.0,0.00010958,2]
[340192337,1728809440781,-500.0,0.00010958,2]
[340192339,1728809440790,-500.0,0.00010958,2]
[340192341,1728809440799,-500.0,0.00010958,2]
[340192343,1728809440808,-500.0,0.00010958,2]
[340192345,1728809440817,-154.04,0.00010959,2]
[340192347,1728809440825,-250.0,0.00010959,2]
[340192348,1728809440834,-1500.0,0.00010959,2]
[340192350,1728809440843,-160.96,0.00010959,2]
[340192352,1728809440853,-214.97780294,0.00010973,2]
[340192354,1728809440862,-500.0,0.00010973,2]
[340192356,1728809440871,-500.0,0.00010973,2]
[340192358,1728809440880,-1471.44465921,0.0001099,2]
[340192360,1728809440890,-1471.44465921,0.0001099,2]
[340192362,1728809440899,-500.0,0.00010993,2]
[340192364,1728809440908,-2139.9921222,0.00010994,2]
[340192366,1728809440917,-7583.7655074,0.00010994,2]
[340192367,1728809440926,-5812.6710935,0.00010994,2]
[340192369,1728809440935,-38712.9383333,0.00010994,2]
[340192371,1728809440944,-3791.2383217,0.00010994,2]
[340192373,1728809440955,-13364.79488492,0.00010998,2]
[340192375,1728809440964,-151.0,0.00010998,2]
[340192377,1728809440973,-150.01,0.00010999,2]
[340192379,1728809440982,-150.0,0.00010999,2]
[340192381,1728809440993,-567.85996232,0.00010999,2]
[340192382,1728809441002,-449.0,0.00011,2]
[340192384,1728809441011,-626.0,0.00011,2]
[340192386,1728809441020,-150.0,0.00011,2]
[340192388,1728809441029,-1083.0,0.00011,2]
[340192390,1728809441038,-150.0,0.00011,2]
[340192392,1728809441047,-1880767.80645859,0.00011,2]
[340192394,1728809441057,-525717.81250861,0.00011,2]
[340192396,1728809441066,-10072.52295131,0.00011,2]
[340192398,1728809441076,-177925.22671544,0.00011,2]
[340192400,1728809441086,-647167.00471372,0.00011,2]
[340192402,1728809441095,-223168.66495391,0.00011,2]
[340192403,1728809441104,-138724.48452645,0.00011,2]
[340192422,1728809443405,-46689.26708418,0.00011,2]
[340192423,1728809446072,-1575.3,0.00011,2]
[340192424,1728809446127,-4866.84207675,0.00011,2]
[340192425,1728809446343,-25538.58917452,0.00011,2]
[340192426,1728809462337,227.39,8.643e-05,2]
[340192427,1728809483084,500.0,0.00010167,2]
[340192428,1728809525296,213.84967412,0.00010167,2]
[340192429,1728809525335,286.15032588,0.00010167,2]
[340192430,1728809535866,466.16,0.00010198,2]
[340192431,1728809580547,3224.33,0.00010202,2]
[340192432,1728809630583,904.0,0.00010182,2]
[340192433,1728809631550,500.0,0.00010167,2]
[340192434,1728809694306,2482.282,0.00010152,2]
[340192435,1728809717378,250.0,0.00010206,2]
[340192436,1728809723926,173.1,0.00010198,2]
[340192437,1728809739922,257.67,0.00010148,2]
[340192438,1728810048689,250.0,0.00010149,2]
[340192439,1728810257610,1000.0,0.00010075,2]
[340192440,1728810270878,1719.32,0.00010155,2]
[340192441,1728810301917,257.67,0.00010094,2]
[340192442,1728810317783,237.43,8.219e-05,2]
[340192459,1728810506606,1002.32578118,0.00021523,90]
[340192486,1728810557415,250.0,0.00010141,2]
[340192548,1728810632279,-237.43,0.00010481,2]
[340192549,1728810632289,-839.69367501,0.00010565,2]
[340192550,1728810632298,-836.91526793,0.00010565,2]
[340192551,1728810632339,-344.33408279,0.00010565,2]
[340192552,1728810632613,-529.96094928,0.00010565,2]
[340192553,1728810632623,-839.69367499,0.00010614,2]
[340192554,1728810632633,-11687.34890312,0.00010665,2]
[340192555,1728810632642,-184.451814,0.00010714,2]
[340192556,1728810632653,-150.0,0.00010749,2]
[340192557,1728810632663,-150.0,0.00010771,2]
[340192558,1728810632672,-150.0,0.00010885,2]
[340192559,1728810632682,-150.99,0.00010899,2]
[340192560,1728810632691,-150.0,0.00010899,2]
[340192561,1728810632700,-6585.58,0.00010899,2]
[340192562,1728810632710,-150.99,0.00010899,2]
[340192563,1728810632719,-14405.61631606,0.000109,2]
[340192566,1728810632731,-320.25724888,0.000109,2]
[340192568,1728810638647,-1021.16647239,0.000109,2]
[340192569,1728810638728,-153994.02791346,0.000109,2]
[340192570,1728810638738,-429.55,0.000109,2]
[340192571,1728810638748,-150.0,0.000109,2]
[340192572,1728810638757,-755.74,0.000109,2]
[340192573,1728810638766,-359.17,0.000109,2]
[340192574,1728810638775,-150.0,0.000109,2]
[340192575,1728810638784,-424.09,0.000109,2]
[340192576,1728810638794,-150.0,0.000109,2]
[340192577,1728810638803,-150.0,0.000109,2]
[340192578,1728810638812,-150.0,0.000109,2]
[340192579,1728810638822,-150.0,0.000109,2]
[340192580,1728810638831,-150.0,0.000109,2]
[340192582,1728810638841,-150.0,0.000109,2]
[340192583,1728810638850,-150.0,0.000109,2]
[340192585,1728810638859,-150.0,0.000109,2]
[340192587,1728810638869,-150.0,0.000109,2]
[340192589,1728810638879,-150.0,0.000109,2]
[340192591,1728810638888,-150.0,0.000109,2]
[340192593,1728810638897,-429.55,0.000109,2]
[340192595,1728810638907,-424.09,0.000109,2]
[340192597,1728810638916,-359.17,0.000109,2]
[340192599,1728810638925,-755.74,0.000109,2]
[340192601,1728810638935,-150.0,0.000109,2]
[340192603,1728810638944,-150.0,0.000109,2]
[340192605,1728810638953,-150.0,0.000109,2]
[340192607,1728810638963,-150.0,0.000109,2]
[340192609,1728810638972,-359.17,0.000109,2]
[340192611,1728810638981,-754.22,0.000109,2]
[340192613,1728810638991,-429.55,0.000109,2]
[340192615,1728810639000,-150.0,0.000109,2]
[340192616,1728810639010,-150.0,0.000109,2]
[340192618,1728810639019,-423.21,0.000109,2]
[340192620,1728810639028,-150.0,0.000109,2]
[340192622,1728810639037,-429.55,0.000109,2]
[340192624,1728810639046,-14367.4,0.000109,2]
[340192626,1728810639055,-183.18923636,0.000109,2]
[340192628,1728810639064,-499.99,0.000109,2]
[340192630,1728810639073,-160.96,0.00010959,2]
[340192631,1728810639082,-156.87,0.00010959,2]
[340192633,1728810639091,-154.39,0.00010959,2]
[340192635,1728810639100,-7044.6790288,0.00010994,2]
[340192637,1728810639109,-50814.8041165,0.00010994,2]
[340192639,1728810639119,-881.07500057,0.00010994,2]
[340192641,1728810639128,-9181.8187048,0.00010994,2]
[340192643,1728810639137,-2976.1353822,0.00010994,2]
[340192644,1728810639147,-283.92998116,0.00010999,2]
[340192646,1728810639156,-4456.09417226,0.00010999,2]
[340192648,1728810639166,-358.93498116,0.00010999,2]
[340192650,1728810639177,-500.0,0.00010999,2]
[340192652,1728810639186,-280.38264447,0.00010999,2]
[340192654,1728810639195,-81173.29748284,0.00011,2]
[340192656,1728810639204,-115603.96010845,0.00011,2]
[340192750,1728810640300,-7019.25962799,0.00011,2]
[340192752,1728810640360,-1137.7,0.00011,2]
[340192753,1728810640418,-541.68735,0.00011,2]
[340192830,1728810643563,-4410.5067356,0.00010994,2]
[340192831,1728810643572,-42278.76034858,0.00011,2]
[340192839,1728810646177,-1000.0,0.000108,2]
[340192840,1728810646186,-2512.16594178,0.00011,2]
[340192842,1728810708583,600.0,9.071e-05,2]
[340192844,1728810722671,500.0,0.00010167,2]
[340192845,1728810792253,257.67,0.00010038,2]
[340192846,1728810842661,200.0,0.00010012,2]
[340192847,1728810908199,257.71,8.219e-05,2]
[340192848,1728811109998,250.0,9.95e-05,2]
[340192849,1728811116610,3304.84,9.95e-05,2]
[340192850,1728811258913,2443.47,9.926e-05,2]
[340192851,1728811283772,167.53,9.926e-05,2]
[340192852,1728811283996,167.53,9.951e-05,2]
[340192853,1728811284208,167.53,9.976e-05,2]
[340192854,1728811302283,237.26,9.926e-05,2]
[340192855,1728811441319,267.1,8.219e-05,2]
[340192856,1728811459995,1000.0,0.00010085,2]
[340193017,1728811645971,250.0,0.00010087,2]
[340193018,1728811661866,550.0,0.0001,2]
[340193019,1728811672295,172.43,0.00010087,2]
[340193086,1728811832363,-262.82,0.00010246,2]
[340193089,1728811832373,-223.64,0.00010438,2]
[340193091,1728811832384,-600.0,0.00010441,2]
[340193093,1728811832393,-267.1,0.00010482,2]
[340193094,1728811832402,-399.519375,0.00010614,2]
[340193095,1728811832411,-300.0,0.00010713,2]
[340193096,1728811832421,-184.451814,0.00010714,2]
[340193097,1728811832432,-3561.58750399,0.00010741,2]
[340193098,1728811832442,-150.0,0.00010799,2]
[340193099,1728811832452,-441.0885,0.000108,2]
[340193100,1728811832462,-262.3564,0.000108,2]
[340193101,1728811832471,-16708.90997547,0.000108,2]
[340193102,1728811832490,-297.04785907,0.000108,2]
[340193103,1728811832502,-10829.91296546,0.000108,2]
[340193104,1728811832512,-7088.15,0.00010868,2]
[340193105,1728811832523,-499.99,0.00010868,2]
[340193106,1728811832533,-1485.5333428,0.0001089,2]
[340193107,1728811832546,-2482.282,0.0001089,2]
[340193108,1728811832558,-1055.69681033,0.0001089,2]
[340193114,1728811838585,-3878.74961649,0.0001089,2]
[340193115,1728811838595,-197.2324,0.00010899,2]
[340193116,1728811838605,-261.74,0.00010899,2]
[340193117,1728811838614,-628.99021115,0.000109,2]
[340193118,1728811838625,-1283.0,0.000109,2]
[340193119,1728811838635,-5182.5829,0.000109,2]
[340193120,1728811838647,-736.05614302,0.000109,2]
[340193127,1728811840549,-4489.69495698,0.000109,2]
[340193128,1728811840559,-395.6864,0.000109,2]
[340193129,1728811840569,-1134.0,0.000109,2]
[340193130,1728811840578,-195.47382231,0.000109,2]
[340193131,1728811840587,-381.27940567,0.000109,2]
[340193132,1728811840597,-175.19255356,0.000109,2]
[340193133,1728811840606,-200.0,0.00010959,2]
[340193134,1728811840616,-162.15,0.00010959,2]
[340193135,1728811840625,-250.0,0.00010959,2]
[340193136,1728811840635,-154.04,0.00010959,2]
[340193137,1728811840645,-156.2,0.00010959,2]
[340193138,1728811840654,-4333.37223648,0.0001099,2]
[340193350,1728811843596,-3920.70614393,0.000109,2]
[340193362,1728811843711,-5451.00076751,0.000109,2]
[340193368,1728811843770,-16837.33035861,0.000109,2]
[340193370,1728811843781,-25441.42998997,0.0001099,2]
[340193478,1728811858613,600.0,9.071e-05,2]
[340193484,1728811919869,500.0,0.00010167,2]
[340193485,1728811920521,500.0,9.071e-05,2]
[340193486,1728811942600,260.44,8.307e-05,2]
[340193487,1728811955579,200.0,0.00010121,2]
[340193497,1728812213088,696.96,9.906e-05,2]
[340193498,1728812214544,250.0,9.906e-05,2]
[340193502,1728812332492,500.0,0.0001,2]
[340193503,1728812333259,503.56,0.0001,2]
[340193505,1728812354137,500.0,0.0001,2]
[340193507,1728812399064,500.0,0.0001,2]
[340193508,1728812399822,500.0,0.0001,2]
[340193509,1728812400242,237.26,9.909e-05,2]
[340193510,1728812400566,500.0,0.0001,2]
[340193511,1728812401321,264.01,0.0001,2]
[340193513,1728812420295,500.0,0.0001,2]
[340193514,1728812421058,500.0,0.0001,2]
[340193515,1728812421830,500.0,0.0001,2]
[340193516,1728812422592,500.0,0.0001,2]
[340193517,1728812423499,500.0,0.0001,2]
[340193518,1728812424164,500.0,0.0001,2]
[340193519,1728812424977,503.45,0.0001,2]
[340193520,1728812486272,840.0,9.901e-05,2]
[340193521,1728812490668,285.7,0.0001,2]
[340193522,1728812539226,247.41,8.219e-05,2]
[340193523,1728812652368,5593.12071978,0.0001,2]
[340193524,1728812789322,250.0,9.889e-05,2]
[340193554,1728812961612,172.43,9.841e-05,2]
[340193571,1728813016669,328.0,9.845e-05,2]
[340193587,1728813037659,-210.0,0.0001027,2]
[340193588,1728813037669,-600.0,0.00010441,2]
[340193589,1728813037678,-193.34036097,0.00010471,2]
[340193590,1728813038042,-54.06963903,0.00010471,2]
[340193591,1728813038053,-210.0,0.0001049,2]
[340193592,1728813038062,-1053.59000794,0.00010499,2]
[340193593,1728813038073,-150.0,0.00010499,2]
[340193594,1728813038082,-337371.0,0.000105,2]
[340193595,1728813038094,-210.0,0.0001071,2]
[340193596,1728813038103,-150.0,0.00010747,2]
[340193597,1728813038112,-150.0,0.0001077,2]
[340193598,1728813038123,-2590.96,0.0001077,2]
[340193599,1728813038135,-150.0,0.00010791,2]
[340193600,1728813038145,-3806.0061,0.00010794,2]
[340193601,1728813038155,-150.0,0.00010794,2]
[340193602,1728813038165,-150.0,0.00010795,2]
[340193603,1728813038175,-499.99,0.00010796,2]
[340193604,1728813038185,-150.0,0.00010797,2]
[340193605,1728813038196,-4562.67,0.00010797,2]
[340193606,1728813038207,-4008.7672,0.000108,2]
[340193607,1728813038217,-9999.99,0.000108,2]
[340193608,1728813038227,-150.0,0.00010823,2]
[340193609,1728813038236,-150.0,0.00010824,2]
[340193610,1728813038245,-150.0,0.00010826,2]
[340193611,1728813038255,-754.36762999,0.00010834,2]
[340193612,1728813038266,-16099.84244254,0.00010835,2]
[340193613,1728813038276,-150.0,0.00010835,2]
[340193614,1728813038284,-150.0,0.00010847,2]
[340193615,1728813038293,-150.0,0.00010871,2]
[340193616,1728813038302,-10986.6341,0.0001089,2]
[340193617,1728813038312,-150.0,0.00010893,2]
[340193618,1728813038321,-18573.1919,0.00010894,2]
[340193619,1728813038330,-1000.0,0.00010894,2]
[340193620,1728813038339,-22927.7324,0.00010894,2]
[340193621,1728813038348,-338.4727,0.00010899,2]
[340193622,1728813038357,-159.02922193,0.00010899,2]
[340193623,1728813038367,-159.02922189,0.00010899,2]
[340193624,1728813038376,-159.02922189,0.00010899,2]
[340193625,1728813038385,-159.02922189,0.00010899,2]
[340193626,1728813038394,-159.02922189,0.00010899,2]
[340193627,1728813038404,-159.02922189,0.00010899,2]
[340193628,1728813038413,-36695.02119887,0.000109,2]
[340193630,1728813042539,-1039.36667901,0.000109,2]
[340193644,1728813042822,-646.30988624,0.000109,2]
[340193718,1728813077401,600.0,9.071e-05,2]
[340193719,1728813094914,240.72,8.219e-05,2]
[340193720,1728813310970,500.0,0.0001,2]
[340193721,1728813321810,250.0,0.00010025,2]
[340193723,1728813376373,500.0,0.0001,2]
[340193724,1728813377194,500.0,0.0001,2]
[340193725,1728813377961,500.0,0.0001,2]
[340193726,1728813378742,500.0,0.0001,2]
[340193727,1728813379901,500.0,0.0001,2]
[340193728,1728813380666,500.0,0.0001,2]
[340193729,1728813381546,500.0,0.0001,2]
[340193730,1728813382221,500.0,0.0001,2]
[340193731,1728813447663,500.0,0.0001,2]
[340193732,1728813448468,500.0,0.0001,2]
[340193733,1728813449236,500.0,0.0001,2]
[340193734,1728813450078,500.0,0.0001,2]
[340193735,1728813450850,500.0,0.0001,2]
[340193736,1728813451664,500.0,0.0001,2]
[340193737,1728813452483,500.0,0.0001,2]
[340193738,1728813453280,500.0,0.0001,2]
[340193739,1728813454558,500.0,0.0001,2]
[340193740,1728813455456,500.0,0.0001,2]
[340193741,1728813456120,500.0,0.0001,2]
[340193742,1728813456892,500.0,0.0001,2]
[340193743,1728813457649,500.0,0.0001,2]
[340193744,1728813458460,500.0,0.0001,2]
[340193745,1728813459251,500.0,0.0001,2]
[340193746,1728813465359,550.0,0.0001,2]
[340193747,1728813524995,500.0,0.0001,2]
[340193748,1728813525748,500.0,0.0001,2]
[340193749,1728813526520,500.0,0.0001,2]
[340193750,1728813527243,737.6,0.00010003,2]
[340193751,1728813527293,500.0,0.0001,2]
[340193752,1728813528043,500.0,0.0001,2]
[340193753,1728813528811,500.0,0.0001,2]
[340193754,1728813529573,500.0,0.0001,2]
[340193755,1728813530326,500.0,0.0001,2]
[340193756,1728813531078,500.0,0.0001,2]
[340193757,1728813531842,500.0,0.0001,2]
[340193758,1728813532663,500.0,0.0001,2]
[340193759,1728813533419,500.0,0.0001,2]
[340193760,1728813534218,500.0,0.0001,2]
[340193761,1728813534977,500.0,0.0001,2]
[340193762,1728813535736,500.0,0.0001,2]
[340193763,1728813536498,500.0,0.0001,2]
[340193764,1728813539076,500.0,0.0001,2]
[340193765,1728813539844,500.0,0.0001,2]
[340193766,1728813540601,500.0,0.0001,2]
[340193767,1728813541354,500.0,0.0001,2]
[340193768,1728813542150,500.0,0.0001,2]
[340193769,1728813542906,500.0,0.0001,2]
[340193770,1728813544138,500.0,0.0001,2]
[340193771,1728813546061,500.0,0.0001,2]
[340193772,1728813602820,500.0,0.0001,2]
[340193773,1728813603604,500.0,0.0001,2]
[340193774,1728813604411,500.0,0.0001,2]
[340193775,1728813605170,500.0,0.0001,2]
[340193776,1728813605920,500.0,0.0001,2]
[340193777,1728813606694,500.0,0.0001,2]
[340193778,1728813607455,500.0,0.0001,2]
[340193779,1728813608214,500.0,0.0001,2]
[340193780,1728813608656,237.36,8.219e-05,2]
[340193781,1728813609083,500.0,0.0001,2]
[340193782,1728813609837,500.0,0.0001,2]
[340193783,1728813610600,500.0,0.0001,2]
[340193784,1728813611379,500.0,0.0001,2]
[340193785,1728813611861,500.0,0.0001,2]
[340193786,1728813612134,425.27,0.0001,2]
[340193787,1728813612715,500.0,0.0001,2]
[340193788,1728813613861,500.0,0.0001,2]
[340193789,1728813614657,500.0,0.0001,2]
[340193790,1728813615412,500.0,0.0001,2]
[340193791,1728813616184,360.01,0.0001,2]
[340193792,1728813681446,500.0,0.0001,2]
[340193793,1728813682243,500.0,0.0001,2]
[340193794,1728813684261,133.20928022,0.0001,2]
[340193795,1728813684284,366.79071978,0.0001,2]
[340193796,1728813746343,-4936.8951,0.000104,2]
[340193797,1728813746370,-600.0,0.00010441,2]
[340193798,1728813746396,-300.0,0.00010448,2]
[340193799,1728813746421,-6400.0,0.00010449,2]
[340193800,1728813746453,-237.36,0.00010476,2]
[340193801,1728813746477,-1069.77804312,0.00010682,2]
[340193802,1728813746503,-1083.10168534,0.00010682,2]
[340193803,1728813746531,-180.21296539,0.00010747,2]
[340193804,1728813746558,-150.0,0.00010766,2]
[340193805,1728813746587,-150.0,0.00010807,2]
[340193806,1728813746621,-150.0,0.00010862,2]
[340193807,1728813746656,-1570.66490586,0.00010898,2]
[340193808,1728813746708,-499.99,0.00010898,2]
[340193809,1728813746763,-150.0,0.00010898,2]
[340193810,1728813746818,-155.759,0.00010899,2]
[340193811,1728813746872,-234.464,0.00010899,2]
[340193812,1728813746925,-656.86476806,0.00010899,2]
[340193813,1728813746958,-656.864768,0.00010899,2]
[340193814,1728813746989,-656.864768,0.00010899,2]
[340193815,1728813747019,-656.864768,0.00010899,2]
[340193816,1728813747047,-656.864768,0.00010899,2]
[340193817,1728813747077,-150.99,0.000109,2]
[340193818,1728813747105,-161.0835701,0.000109,2]
[340193819,1728813747132,-161.43347078,0.000109,2]
[340193820,1728813747157,-2000.0,0.000109,2]
[340193821,1728813747183,-200.0,0.000109,2]
[340193822,1728813747211,-10354.58443606,0.000109,2]
[340193823,1728813747240,-156.23030464,0.000109,2]
[340193824,1728813747269,-156.23030464,0.000109,2]
[340193825,1728813747299,-210.0,0.0001093,2]
[340193826,1728813747331,-156.2,0.00010959,2]
[340193827,1728813747357,-156.87,0.00010959,2]
[340193828,1728813747382,-17030.41,0.00010959,2]
[340193829,1728813747410,-154.39,0.00010959,2]
[340193830,1728813747441,-150.0,0.00010964,2]
[340193831,1728813747468,-641.20696685,0.00010973,2]
[340193832,1728813747496,-2500.0,0.00010989,2]
[340193833,1728813747524,-31932.82140716,0.0001099,2]